bitfinex-derivatives/quotes_BTCF0:USTF0_20241006
["timestamp","ask_amount","ask_price","bid_price","bid_amount"]
[1728188250896,0.0004,61955.0,61954.0,0.174967]
[1728188251499,0.0024,61955.0,61954.0,0.174967]
[1728188252402,0.0034,61955.0,61954.0,0.174967]
[1728188253003,0.0034,61955.0,61954.0,0.659207]
[1728188253498,0.0034,61955.0,61954.0,1.30759007]
[1728188253808,0.0004,61956.0,61955.0,0.064566]
[1728188254005,0.0004,61956.0,61955.0,0.59747826]
[1728188254196,0.0004,61956.0,61955.0,1.149206]
[1728188254800,0.0004,61956.0,61955.0,1.19747826]
[1728188255002,0.0034,61956.0,61955.0,1.19747826]
[1728188255213,0.0034,61956.0,61955.0,1.149206]
[1728188256312,0.0054,61956.0,61955.0,1.149206]
[1728188257411,0.0054,61956.0,61955.0,1.510006]
[1728188257930,0.0054,61956.0,61955.0,1.4292595]
[1728188258613,0.04814217,61956.0,61955.0,1.4938255]
[1728188259006,0.0054,61956.0,61955.0,1.4938255]
[1728188259208,0.04150514,61956.0,61955.0,1.4938255]
[1728188259514,0.0054,61956.0,61955.0,1.4938255]
[1728188259812,0.0054,61956.0,61955.0,0.8938255]
[1728188259813,0.08339138,61956.0,61955.0,0.8938255]
[1728188262809,0.08339138,61956.0,61955.0,0.5330255]
[1728188263015,0.08339138,61956.0,61955.0,0.425766]
[1728188265816,0.0833053,61956.0,61955.0,0.425766]
[1728188266116,0.0054,61956.0,61955.0,0.425766]
[1728188271223,0.0054,61956.0,61955.0,0.47407878]
[1728188272931,0.08351984,61956.0,61955.0,0.425766]
[1728188275523,0.08354486,61956.0,61955.0,0.425766]
[1728188280438,0.09109355,61956.0,61955.0,0.425766]
[1728188280631,0.14979145,61956.0,61955.0,0.425766]
[1728188281127,0.0054,61956.0,61955.0,0.425766]
[1728188283733,0.0054,61956.0,61955.0,0.50654155]
[1728188287125,0.0054,61956.0,61955.0,0.425766]
[1728188287327,0.0054,61956.0,61955.0,0.50654155]
[1728188288026,0.08379325,61956.0,61955.0,0.34501985]
[1728188288332,0.13332597,61956.0,61955.0,0.34501985]
[1728188288526,0.13330234,61956.0,61955.0,0.40958585]
[1728188289033,0.13330234,61956.0,61955.0,0.89378585]
[1728188289232,0.13330234,61956.0,61955.0,1.36459134]
[1728188291630,0.13330234,61956.0,61955.0,0.76459134]
[1728188292540,0.26095251,61956.0,61955.0,0.76459134]
[1728188292835,0.13330234,61956.0,61955.0,0.76459134]
[1728188293036,0.12962477,61956.0,61955.0,0.76459134]
[1728188293241,0.12962477,61956.0,61955.0,1.36459134]
[1728188294131,0.03456391,61956.0,61955.0,1.36459134]
[1728188294334,0.18467055,61959.0,61958.0,0.064563]
[1728188294529,0.0004,61960.0,61959.0,0.064562]
[1728188294839,0.0004,61960.0,61959.0,0.064962]
[1728188295732,0.0004,61960.0,61959.0,0.09019164]
[1728188296133,0.0004,61960.0,61959.0,0.20212076]
[1728188296527,0.0064,61960.0,61959.0,0.20212076]
[1728188296933,0.0134,61960.0,61959.0,0.20312076]
[1728188297729,0.0004,61961.0,61959.0,1.22275923]
[1728188298037,0.0075,61962.0,61961.0,0.064559]
[1728188298233,0.00622131,61966.0,61964.0,0.064556]
[1728188298234,0.0079,61965.0,61964.0,0.064556]
[1728188298536,0.0004,61965.0,61964.0,0.174956]
[1728188299735,0.0074,61965.0,61964.0,0.174956]
[1728188300234,0.0074,61965.0,61964.0,0.535756]
[1728188300430,0.0074,61965.0,61964.0,0.174956]
[1728188300626,0.0074,61965.0,61964.0,0.535756]
[1728188301944,0.0074,61965.0,61964.0,0.56098574]
[1728188302140,0.0079,61968.0,61964.0,0.49742974]
[1728188302340,0.0079,61968.0,61967.0,0.174953]
[1728188302537,0.0319,61970.0,61967.0,0.20018245]
[1728188302742,0.0083,61971.0,61970.0,0.06455]
[1728188302930,0.0008,61971.0,61970.0,0.56057945]
[1728188303135,0.0008,61971.0,61970.0,0.56097945]
[1728188303638,0.0354,61978.0,61970.0,0.56097945]
[1728188303639,0.0354,61978.0,61975.0,0.064545]
[1728188303844,0.0316,61978.0,61976.0,0.1104]
[1728188305441,0.0044,61977.0,61976.0,0.1114]
[1728188306543,0.0124,61977.0,61976.0,0.1124]
[1728188308248,0.0124,61977.0,61976.0,0.4732]
[1728188309745,0.0124,61977.0,61976.0,0.50292812]
[1728188310741,0.0054,61977.0,61976.0,0.50192812]
[1728188312040,0.07758001,61977.0,61976.0,0.50192812]
[1728188312235,0.07758001,61977.0,61976.0,0.50092812]
[1728188312443,0.07658001,61977.0,61976.0,0.50092812]
[1728188312644,0.07658001,61977.0,61976.0,0.14012812]
[1728188312948,0.07658001,61977.0,61976.0,0.50092812]
[1728188313150,0.0044,61977.0,61976.0,0.50092812]
[1728188313346,0.1260938,61977.0,61976.0,0.50092812]
[1728188313552,0.1260938,61977.0,61976.0,0.20467212]
[1728188313845,0.1260938,61977.0,61976.0,0.56547212]
[1728188314241,0.07658001,61977.0,61976.0,0.56547212]
[1728188316139,0.07658001,61977.0,61976.0,0.20467212]
[1728188316334,0.07658001,61977.0,61976.0,0.56547212]
[1728188317349,0.07661406,61977.0,61976.0,0.56547212]
[1728188318053,0.0044,61977.0,61976.0,0.56547212]
[1728188319049,0.0004,61980.0,61977.0,0.064543]
[1728188319252,0.0004,61980.0,61978.0,0.064542]
[1728188319253,0.0157805,61979.0,61978.0,0.064542]
[1728188320450,0.0157805,61979.0,61978.0,0.174542]
[1728188321053,0.0064,61980.0,61978.0,0.4708]
[1728188321242,0.0064,61980.0,61979.0,0.064941]
[1728188322157,0.0004,61980.0,61979.0,0.064941]
[1728188322949,0.0054,61980.0,61979.0,0.064941]
[1728188323247,0.0104,61980.0,61979.0,0.065941]
[1728188323447,0.0054,61980.0,61979.0,0.065941]
[1728188323649,0.0104,61980.0,61979.0,0.065941]
[1728188325360,0.0104,61980.0,61979.0,0.11426582]
[1728188325764,0.0104,61980.0,61979.0,0.065941]
[1728188333180,0.04310617,61980.0,61979.0,0.065941]
[1728188333381,0.20412617,61980.0,61979.0,0.065941]
[1728188333685,0.29313912,61980.0,61979.0,0.065941]
[1728188334183,0.13211912,61980.0,61979.0,0.065941]
[1728188334387,0.25959878,61980.0,61979.0,0.065941]
[1728188334887,0.13211912,61980.0,61979.0,0.065941]
[1728188336784,0.13214641,61980.0,61979.0,0.065941]
[1728188340282,0.13214641,61980.0,61979.0,0.426741]
[1728188340793,0.13211221,61980.0,61979.0,0.426741]
[1728188341288,0.0104,61980.0,61979.0,0.49120143]
[1728188342280,0.0008,61982.0,61979.0,0.42666043]
[1728188342587,0.0008,61982.0,61981.0,0.174939]
[1728188344995,0.0018,61982.0,61981.0,0.174939]
[1728188345195,0.0048,61982.0,61981.0,0.174939]
[1728188345797,0.0008,61982.0,61981.0,0.176939]
[1728188346495,0.0004,61983.0,61982.0,0.064538]
[1728188346690,0.0004,61983.0,61982.0,0.064938]
[1728188347881,0.0014,61983.0,61982.0,0.065938]
[1728188348088,0.0044,61983.0,61982.0,0.066938]
[1728188348290,0.037113,61983.0,61982.0,0.066938]
[1728188348492,0.12612431,61983.0,61982.0,0.066938]
[1728188349287,0.12612431,61983.0,61982.0,0.09216009]
[1728188350602,0.12612431,61983.0,61982.0,0.45296009]
[1728188352987,0.12612431,61983.0,61982.0,0.427738]
[1728188353290,0.12612431,61983.0,61982.0,0.45296009]
[1728188353291,0.1261246,61983.0,61982.0,0.45296009]
[1728188353793,0.1261246,61983.0,61982.0,0.09216009]
[1728188353985,0.1261246,61983.0,61982.0,0.45296009]
[1728188356297,0.01170295,61986.0,61985.0,0.064534]
[1728188356599,0.01170295,61986.0,61985.0,0.4193407]
[1728188357001,0.0004,61987.0,61985.0,0.3548067]
[1728188357191,0.0004,61991.0,61990.0,0.064529]
[1728188357495,0.0004,61991.0,61990.0,0.41881428]
[1728188358798,0.0004,61991.0,61990.0,0.55809056]
[1728188359004,0.0004,61991.0,61990.0,0.71141248]
[1728188359005,0.0014,61991.0,61990.0,0.71141248]
[1728188359212,0.00076208,61991.0,61990.0,0.44503315]
[1728188359499,0.00076208,61991.0,61990.0,0.44603315]
[1728188360011,0.0024199,61996.0,61990.0,0.35628528]
[1728188360209,0.0024199,61996.0,61994.0,0.174525]
[1728188360396,0.0024199,61996.0,61994.0,0.41842803]
[1728188361297,0.0024199,61996.0,61994.0,0.28642238]
[1728188361998,0.0024199,61996.0,61994.0,0.28742238]
[1728188362200,0.0024199,61996.0,61994.0,0.28842238]
[1728188362995,0.0024199,61996.0,61994.0,0.64922238]
[1728188363200,0.0024199,61996.0,61994.0,0.537725]
[1728188363201,0.03387726,61995.0,61994.0,0.537725]
[1728188365007,0.03387726,61995.0,61994.0,0.538125]
[1728188365205,0.03398548,61995.0,61994.0,0.538125]
[1728188366501,0.0038,62002.0,61994.0,0.4736]
[1728188366723,0.0004,62003.0,62001.0,0.1104]
[1728188366909,0.0004,62003.0,62002.0,0.0004]
[1728188367696,0.0004,62003.0,62002.0,0.0008]
[1728188368612,0.0004,62003.0,62002.0,0.0018]
[1728188369507,0.0004,62003.0,62002.0,0.0028]
[1728188371303,0.0004,62003.0,62002.0,0.05113458]
[1728188372214,0.0004,62003.0,62002.0,0.0028]
[1728188375109,0.0004,62003.0,62002.0,0.05153458]
[1728188376317,0.0004,62003.0,62002.0,0.11605158]
[1728188377527,0.0004,62003.0,62002.0,0.177717]
[1728188378414,0.0004,62003.0,62002.0,0.5223469]
[1728188378415,0.08349866,62003.0,62002.0,0.5223469]
[1728188378616,0.12298743,62003.0,62002.0,0.5223469]
[1728188379316,0.12298743,62003.0,62002.0,0.425317]
[1728188379513,0.1222954,62003.0,62002.0,0.535317]
[1728188380512,0.1222954,62003.0,62002.0,0.174517]
[1728188380816,0.1222954,62003.0,62002.0,0.535317]
[1728188381326,0.26728648,62003.0,62002.0,0.535317]
[1728188381737,0.1222954,62003.0,62002.0,0.535317]
[1728188382319,0.1222954,62003.0,62002.0,0.174517]
[1728188382320,0.26728648,62003.0,62002.0,0.174517]
[1728188382529,0.26728648,62003.0,62002.0,0.535317]
[1728188383215,0.1222954,62003.0,62002.0,0.174517]
[1728188384429,0.12225444,62003.0,62002.0,0.174517]
[1728188386223,0.28340235,62003.0,62002.0,0.174517]
[1728188386426,0.0004,62003.0,62002.0,0.174517]
[1728188386624,0.0004,62003.0,62002.0,0.064517]
[1728188386823,0.0004,62003.0,62002.0,0.174517]
[1728188387024,0.0004,62003.0,62002.0,0.174917]
[1728188387230,0.0004,62003.0,62002.0,0.2393631]
[1728188389126,0.0004,62003.0,62002.0,0.174917]
[1728188394045,0.0004,62003.0,62002.0,0.0004]
[1728188394345,0.0004,62003.0,62002.0,0.04878185]
[1728188394545,0.0004,62003.0,62002.0,0.0004]
[1728188394743,0.064916,62003.0,62002.0,0.0004]
[1728188397052,0.065916,62003.0,62002.0,0.0024]
[1728188397353,0.065916,62003.0,62002.0,0.0028]
[1728188398945,1.149756,62003.0,62002.0,0.0028]
[1728188401056,1.510556,62003.0,62002.0,0.0028]
[1728188401358,1.69003246,62003.0,62002.0,0.0028]
[1728188401661,1.86702401,62003.0,62002.0,0.0028]
[1728188401952,1.69003246,62003.0,62002.0,0.00169488]
[1728188402358,1.69003164,62003.0,62002.0,0.00169488]
[1728188402858,1.32923164,62003.0,62002.0,0.00169488]
[1728188403044,1.69003164,62003.0,62002.0,0.00209488]
[1728188404242,1.32923164,62003.0,62002.0,0.00209488]
[1728188404447,1.69003164,62003.0,62002.0,0.00209488]
[1728188407264,1.69001507,62003.0,62002.0,0.00209488]
[1728188407855,1.69001507,62003.0,62002.0,0.00226488]
[1728188408351,1.149756,62003.0,62002.0,0.00226488]
[1728188408556,1.510556,62003.0,62002.0,0.00226488]
[1728188410556,1.510556,62003.0,62002.0,0.00266488]
[1728188411064,1.149756,62003.0,62002.0,0.00266488]
[1728188411253,1.510556,62003.0,62002.0,0.00266488]
[1728188412158,1.149756,62003.0,62002.0,0.00266488]
[1728188412361,1.510556,62003.0,62002.0,0.00266488]
[1728188412561,1.149756,62003.0,62002.0,0.00266488]
[1728188412954,1.510556,62003.0,62002.0,0.00266488]
[1728188414855,1.149756,62003.0,62002.0,0.00266488]
[1728188415063,1.510556,62003.0,62002.0,0.00266488]
[1728188415949,1.149756,62003.0,62002.0,0.00266488]
[1728188416154,1.510556,62003.0,62002.0,0.00266488]
[1728188418160,0.665916,62003.0,62002.0,0.00266488]
[1728188418368,1.510556,62003.0,62002.0,0.00266488]
[1728188420174,0.548357,62002.0,61999.0,0.0113]
[1728188420386,0.174919,62000.0,61999.0,0.0113]
[1728188420856,1.258799,62000.0,61999.0,0.0113]
[1728188421257,1.258799,62000.0,61999.0,0.0117]
[1728188421666,1.258799,62000.0,61999.0,0.0127]
[1728188423359,1.259799,62000.0,61999.0,0.0127]
[1728188423564,1.38116357,62000.0,61999.0,0.0127]
[1728188423766,1.38416357,62000.0,61999.0,0.0137]
[1728188423966,1.74496357,62000.0,61999.0,0.0137]
[1728188425868,1.38416357,62000.0,61999.0,0.0137]
[1728188426164,2.10576357,62000.0,61999.0,0.0137]
[1728188428272,2.10576357,62000.0,61997.0,0.0038]
[1728188428273,0.064521,61998.0,61997.0,0.0038]
[1728188428478,0.064524,61995.0,61994.0,0.0008]
[1728188428779,0.3519726,61995.0,61994.0,0.0008]
[1728188428969,0.8341399,61995.0,61994.0,0.0008]
[1728188429164,0.89199407,61995.0,61994.0,0.0008]
[1728188429365,0.89199407,61995.0,61994.0,0.0012]
[1728188430266,0.89199457,61995.0,61994.0,0.0012]
[1728188430472,0.89399457,61995.0,61994.0,0.0012]
[1728188430781,0.53619457,61995.0,61994.0,0.0012]
[1728188431179,0.89699457,61995.0,61994.0,0.0012]
[1728188431579,0.540724,61995.0,61994.0,0.0012]
[1728188433387,0.56907201,61995.0,61994.0,0.0012]
[1728188433881,1.05299201,61995.0,61994.0,0.0012]
[1728188435285,1.65299201,61995.0,61994.0,0.0012]
[1728188435483,1.29219201,61995.0,61994.0,0.0012]
[1728188435683,1.65299201,61995.0,61994.0,0.0012]
[1728188438489,1.83204394,61995.0,61994.0,0.00073251]
[1728188439781,1.83204394,61995.0,61994.0,0.00113251]
[1728188441283,1.83203669,61995.0,61994.0,0.00113251]
[1728188441991,1.47123669,61995.0,61994.0,0.00113251]
[1728188442193,1.83203669,61995.0,61994.0,0.00153251]
[1728188442396,1.34811669,61995.0,61994.0,0.00153251]
[1728188442690,1.83203669,61995.0,61994.0,0.00153251]
[1728188443889,1.47123669,61995.0,61994.0,0.00153251]
[1728188444083,1.83203669,61995.0,61994.0,0.00153251]
[1728188444482,1.47123669,61995.0,61994.0,0.00153251]
[1728188444688,1.83203669,61995.0,61994.0,0.00153251]
[1728188445390,0.064527,61992.0,61991.0,0.0113]
[1728188445597,0.064528,61991.0,61990.0,0.0004]
[1728188445801,0.18611713,61991.0,61990.0,0.0004]
[1728188446394,0.36315113,61991.0,61990.0,0.0008]
[1728188446595,0.064928,61991.0,61990.0,0.0008]
[1728188446791,0.066928,61991.0,61990.0,0.0008]
[1728188448293,0.067928,61991.0,61990.0,0.0008]
[1728188449096,0.428728,61991.0,61990.0,0.0008]
[1728188449286,0.067928,61991.0,61990.0,0.0008]
[1728188449597,0.428728,61991.0,61990.0,0.0008]
[1728188453489,0.538728,61991.0,61990.0,0.0008]
[1728188453706,0.6599467,61991.0,61990.0,0.0008]
[1728188454387,0.82090473,61991.0,61990.0,0.0008]
[1728188454796,0.6599467,61991.0,61990.0,0.0008]
[1728188455706,0.82090473,61991.0,61990.0,0.0008]
[1728188456097,0.2991467,61991.0,61990.0,0.0008]
[1728188456604,0.46010473,61991.0,61990.0,0.0008]
[1728188456808,0.2991467,61991.0,61990.0,0.0008]
[1728188458196,0.46010473,61991.0,61990.0,0.0008]
[1728188458599,0.2991467,61991.0,61990.0,0.0008]
[1728188459702,0.46010473,61991.0,61990.0,0.0008]
[1728188460706,0.46009545,61991.0,61990.0,0.0008]
[1728188461110,0.82089545,61991.0,61990.0,0.0008]
[1728188461706,0.538728,61991.0,61990.0,0.0008]
[1728188468722,0.82091409,61991.0,61990.0,0.0008]
[1728188469422,0.82092201,61991.0,61990.0,0.0008]
[1728188470420,0.46012201,61991.0,61990.0,0.0008]
[1728188473524,0.82092201,61991.0,61990.0,0.0008]
[1728188473824,0.69968603,61991.0,61990.0,0.0008]
[1728188474926,0.064532,61987.0,61986.0,0.0004]
[1728188475224,0.174932,61987.0,61986.0,0.0004]
[1728188476122,0.24627598,61987.0,61986.0,0.0034]
[1728188476822,0.24627598,61987.0,61986.0,0.0054]
[1728188477523,0.24627598,61987.0,61982.0,0.0042]
[1728188477524,0.064537,61983.0,61982.0,0.0042]
[1728188477731,0.064937,61983.0,61982.0,0.0004]
[1728188478026,0.174937,61983.0,61982.0,0.0004]
[1728188478725,0.174937,61983.0,61982.0,0.0074]
[1728188479327,0.896537,61983.0,61982.0,0.0074]
[1728188480027,0.896537,61983.0,61982.0,0.0134]
[1728188483519,0.786537,61983.0,61982.0,0.0134]
[1728188486028,0.425737,61983.0,61982.0,0.0134]
[1728188486728,0.425737,61983.0,61982.0,0.12549328]
[1728188487126,0.064937,61983.0,61982.0,0.12549328]
[1728188489633,0.064937,61983.0,61982.0,0.0134]
[1728188491631,0.1363396,61983.0,61982.0,0.0134]
[1728188493521,0.18586049,61983.0,61982.0,0.0134]
[1728188496440,0.34682224,61983.0,61982.0,0.0134]
[1728188497526,0.18586049,61983.0,61982.0,0.0134]
[1728188497729,0.29586049,61983.0,61982.0,0.0134]
[1728188497930,0.45681008,61983.0,61982.0,0.0134]
[1728188498137,0.29586049,61983.0,61982.0,0.0134]
[1728188499035,0.4568047,61983.0,61982.0,0.0134]
[1728188499538,0.896537,61983.0,61982.0,0.0134]
[1728188501344,0.896537,61983.0,61982.0,0.06173854]
[1728188503241,0.896537,61983.0,61982.0,0.0134]
[1728188506550,1.01715293,61983.0,61982.0,0.0134]
[1728188507049,0.29555293,61983.0,61982.0,0.0134]
[1728188507248,1.01715293,61983.0,61982.0,0.0134]
[1728188508647,0.29555293,61983.0,61982.0,0.0134]
[1728188508843,1.01715293,61983.0,61982.0,0.0134]
[1728188509436,0.896537,61983.0,61982.0,0.0134]
[1728188509642,1.01714924,61983.0,61982.0,0.0134]
[1728188512646,0.29554924,61983.0,61982.0,0.0134]
[1728188512852,1.01714924,61983.0,61982.0,0.0134]
[1728188514555,0.174937,61983.0,61982.0,0.0134]
[1728188514749,0.896537,61983.0,61982.0,0.0134]
[1728188519155,0.174937,61983.0,61982.0,0.0134]
[1728188519351,0.896537,61983.0,61982.0,0.0134]
[1728188521157,0.896537,61983.0,61982.0,0.07785138]
[1728188521559,1.01717251,61983.0,61982.0,0.0134]
[1728188521762,1.16218195,61983.0,61982.0,0.0134]
[1728188522261,0.29557251,61983.0,61982.0,0.0134]
[1728188522464,1.01717251,61983.0,61982.0,0.0134]
[1728188522859,0.896537,61983.0,61982.0,0.0134]
[1728188523062,1.01718065,61983.0,61982.0,0.0134]
[1728188525363,0.29558065,61983.0,61982.0,0.0134]
[1728188525563,1.01718065,61983.0,61982.0,0.0134]
[1728188527456,0.29558065,61983.0,61982.0,0.0134]
[1728188527656,1.01718065,61983.0,61982.0,0.0134]
[1728188527866,1.01719404,61983.0,61982.0,0.0134]
[1728188529358,1.19422804,61983.0,61982.0,0.0134]
[1728188529570,1.073571,61983.0,61982.0,0.0134]
[1728188529769,0.896537,61983.0,61982.0,0.0134]
[1728188530665,0.786537,61983.0,61982.0,0.0134]
[1728188530964,0.896537,61983.0,61982.0,0.07798046]
[1728188531171,0.896537,61983.0,61982.0,0.0134]
[1728188531367,0.174937,61983.0,61982.0,0.0134]
[1728188531572,0.896537,61983.0,61982.0,0.0134]
[1728188533669,0.174937,61983.0,61982.0,0.0134]
[1728188533973,0.896537,61983.0,61982.0,0.0134]
[1728188534364,0.174937,61983.0,61982.0,0.0134]
[1728188534763,0.896537,61983.0,61982.0,0.0134]
[1728188535466,0.174937,61983.0,61982.0,0.0134]
[1728188535774,0.896537,61983.0,61982.0,0.0134]
[1728188535965,0.174937,61983.0,61982.0,0.0134]
[1728188536170,0.896537,61983.0,61982.0,0.0134]
[1728188538874,0.174937,61983.0,61982.0,0.0134]
[1728188539584,0.896537,61983.0,61982.0,0.0134]
[1728188540083,0.174937,61983.0,61982.0,0.0134]
[1728188540284,0.896537,61983.0,61982.0,0.0134]
[1728188541079,0.174937,61983.0,61982.0,0.0134]
[1728188541287,0.896537,61983.0,61982.0,0.0134]
[1728188542084,0.174937,61983.0,61982.0,0.0134]
[1728188542588,0.896537,61983.0,61982.0,0.0134]
[1728188543583,0.174937,61983.0,61982.0,0.0134]
[1728188543779,0.896537,61983.0,61982.0,0.0134]
[1728188544382,0.174937,61983.0,61982.0,0.0134]
[1728188544677,0.896537,61983.0,61982.0,0.0134]
[1728188546587,0.21444947,61983.0,61982.0,0.0134]
[1728188546880,0.93604947,61983.0,61982.0,0.0134]
[1728188547080,1.01725531,61983.0,61982.0,0.0134]
[1728188547478,0.896537,61983.0,61982.0,0.0134]
[1728188549878,0.174937,61983.0,61982.0,0.0134]
[1728188550187,0.896537,61983.0,61982.0,0.0134]
[1728188550489,0.174937,61983.0,61982.0,0.0134]
[1728188550681,0.896537,61983.0,61982.0,0.0134]
[1728188551684,0.174937,61983.0,61982.0,0.0134]
[1728188552076,0.29563864,61983.0,61982.0,0.0134]
[1728188552277,1.01723864,61983.0,61982.0,0.0134]
[1728188552986,0.29563864,61983.0,61982.0,0.0134]
[1728188553187,1.01723864,61983.0,61982.0,0.0134]
[1728188555080,0.29563864,61983.0,61982.0,0.0134]
[1728188555286,1.01723864,61983.0,61982.0,0.0134]
[1728188555493,0.29563864,61983.0,61982.0,0.0134]
[1728188555691,1.01723864,61983.0,61982.0,0.0134]
[1728188556584,0.29563864,61983.0,61982.0,0.0134]
[1728188556781,1.01723864,61983.0,61982.0,0.0134]
[1728188556982,0.29563864,61983.0,61982.0,0.0134]
[1728188557185,0.44087363,61983.0,61982.0,0.0134]
[1728188557391,1.16247363,61983.0,61982.0,0.0134]
[1728188558593,0.44087363,61983.0,61982.0,0.0134]
[1728188558790,1.16247363,61983.0,61982.0,0.0134]
[1728188559187,0.44087363,61983.0,61982.0,0.0134]
[1728188559393,0.96771244,61983.0,61982.0,0.0134]
[1728188560000,0.896537,61983.0,61982.0,0.0134]
[1728188562400,0.535737,61983.0,61982.0,0.0134]
[1728188563403,0.174937,61983.0,61982.0,0.0134]
[1728188563606,0.896537,61983.0,61982.0,0.0134]
[1728188566602,0.174937,61983.0,61982.0,0.0134]
[1728188567003,0.896537,61983.0,61982.0,0.0134]
[1728188567398,0.174937,61983.0,61982.0,0.0134]
[1728188567608,0.896537,61983.0,61982.0,0.0134]
[1728188568408,0.174937,61983.0,61982.0,0.0134]
[1728188568612,0.896537,61983.0,61982.0,0.0134]
[1728188569323,0.174937,61983.0,61982.0,0.0134]
[1728188569914,0.896537,61983.0,61982.0,0.0134]
[1728188570405,0.174937,61983.0,61982.0,0.0134]
[1728188570710,0.896537,61983.0,61982.0,0.0134]
[1728188572415,0.174937,61983.0,61982.0,0.0134]
[1728188572612,0.896537,61983.0,61982.0,0.0134]
[1728188572805,0.174937,61983.0,61982.0,0.0134]
[1728188573206,0.896537,61983.0,61982.0,0.0134]
[1728188574312,0.174937,61983.0,61982.0,0.0134]
[1728188574518,0.896537,61983.0,61982.0,0.0134]
[1728188574913,0.174937,61983.0,61982.0,0.0134]
[1728188575115,1.01723656,61983.0,61982.0,0.00827917]
[1728188575310,1.0751075,61983.0,61982.0,0.00827917]
[1728188575814,0.3535075,61983.0,61982.0,0.00827917]
[1728188576012,1.01723656,61983.0,61982.0,0.00827917]
[1728188576315,0.3535075,61983.0,61982.0,0.00827917]
[1728188576503,1.0751075,61983.0,61982.0,0.00827917]
[1728188576917,0.3535075,61983.0,61982.0,0.00827917]
[1728188577113,1.01723656,61983.0,61982.0,0.00827917]
[1728188577309,1.0751075,61983.0,61982.0,0.00827917]
[1728188577509,0.3535075,61983.0,61982.0,0.00827917]
[1728188577712,1.01723656,61983.0,61982.0,0.00827917]
[1728188577913,0.3535075,61983.0,61982.0,0.00827917]
[1728188578111,1.0751075,61983.0,61982.0,0.00827917]
[1728188578811,0.3535075,61983.0,61982.0,0.00827917]
[1728188579010,1.0751075,61983.0,61982.0,0.00827917]
[1728188579310,0.3535075,61983.0,61982.0,0.00827917]
[1728188579512,0.29563656,61983.0,61982.0,0.00827917]
[1728188579814,1.01723656,61983.0,61982.0,0.00827917]
[1728188580014,1.0751075,61983.0,61982.0,0.00827917]
[1728188581007,0.3535075,61983.0,61982.0,0.00827917]
[1728188581210,1.0751075,61983.0,61982.0,0.00827917]
[1728188582110,0.896537,61983.0,61982.0,0.00827917]
[1728188582318,0.174937,61983.0,61982.0,0.00827917]
[1728188582516,0.896537,61983.0,61982.0,0.00827917]
[1728188584618,0.174937,61983.0,61982.0,0.00827917]
[1728188584921,0.896537,61983.0,61982.0,0.00827917]
[1728188586419,0.174937,61983.0,61982.0,0.00827917]
[1728188587708,0.896537,61983.0,61982.0,0.00827917]
[1728188589912,0.174937,61983.0,61982.0,0.00827917]
[1728188590108,1.01716296,61983.0,61982.0,0.00827917]
[1728188590318,1.07503436,61983.0,61982.0,0.00827917]
[1728188590519,0.064538,61982.0,61981.0,0.0004]
[1728188590719,0.24343536,61982.0,61981.0,0.0004]
[1728188591217,0.96503536,61982.0,61981.0,0.0004]
[1728188592018,0.24443536,61982.0,61981.0,0.0074]
[1728188592212,0.90816396,61982.0,61981.0,0.0074]
[1728188592418,0.24543536,61982.0,61981.0,0.0144]
[1728188592620,0.90916396,61982.0,61981.0,0.0144]
[1728188592931,0.24543536,61982.0,61981.0,0.0144]
[1728188593114,0.96703536,61982.0,61981.0,0.0144]
[1728188595216,0.24543536,61982.0,61981.0,0.0144]
[1728188595413,0.96703536,61982.0,61981.0,0.0144]
[1728188596420,0.24543536,61982.0,61981.0,0.0144]
[1728188596625,0.90916396,61982.0,61981.0,0.0144]
[1728188596821,0.96703536,61982.0,61981.0,0.0144]
[1728188597024,0.24543536,61982.0,61981.0,0.0144]
[1728188597328,0.788538,61982.0,61981.0,0.0144]
[1728188599127,0.066938,61982.0,61981.0,0.0144]
[1728188599340,0.788538,61982.0,61981.0,0.0144]
[1728188600022,0.066938,61982.0,61981.0,0.07896574]
[1728188600631,0.788538,61982.0,61981.0,0.07896574]
[1728188602434,0.066938,61982.0,61981.0,0.07896574]
[1728188602727,0.788538,61982.0,61981.0,0.07896574]
[1728188602944,0.066938,61982.0,61981.0,0.07896574]
[1728188603427,0.788538,61982.0,61981.0,0.07896574]
[1728188604230,0.066938,61982.0,61981.0,0.07896574]
[1728188604426,0.788538,61982.0,61981.0,0.07896574]
[1728188605131,0.066938,61982.0,61981.0,0.0144]
[1728188605433,0.788538,61982.0,61981.0,0.0144]
[1728188605926,0.066938,61982.0,61981.0,0.0144]
[1728188606124,0.788538,61982.0,61981.0,0.0144]
[1728188606326,0.066938,61982.0,61981.0,0.0144]
[1728188606627,0.788538,61982.0,61981.0,0.0144]
[1728188608126,0.066938,61982.0,61981.0,0.0144]
[1728188608327,0.788538,61982.0,61981.0,0.0144]
[1728188609027,0.066938,61982.0,61981.0,0.0144]
[1728188609728,0.788538,61982.0,61981.0,0.0144]
[1728188612130,0.96702229,61982.0,61981.0,0.0144]
[1728188615631,0.96702229,61982.0,61981.0,0.00876908]
[1728188616731,0.9669232,61982.0,61981.0,0.00876908]
[1728188617438,0.06454,61980.0,61979.0,0.0004]
[1728188617632,0.14593953,61980.0,61979.0,0.0004]
[1728188617826,0.11446797,61980.0,61979.0,0.0004]
[1728188618033,0.064543,61977.0,61976.0,0.0004]
[1728188618233,0.55037312,61977.0,61976.0,0.0004]
[1728188618429,0.60824491,61977.0,61976.0,0.0004]
[1728188618933,1.32984491,61977.0,61976.0,0.0004]
[1728188619935,0.85749951,61977.0,61976.0,0.0004]
[1728188620137,0.786543,61977.0,61976.0,0.0004]
[1728188620333,0.787543,61977.0,61976.0,0.0114]
[1728188620638,0.788543,61977.0,61976.0,0.0214]
[1728188627135,0.81991597,61977.0,61976.0,0.0214]
[1728188628435,0.09831597,61977.0,61976.0,0.0214]
[1728188628741,0.81991597,61977.0,61976.0,0.0214]
[1728188629845,0.85943113,61977.0,61976.0,0.0214]
[1728188633738,0.85983113,61977.0,61976.0,0.0214]
[1728188633944,0.13823113,61977.0,61976.0,0.0214]
[1728188634144,0.85983113,61977.0,61976.0,0.0214]
[1728188634444,0.13823113,61977.0,61976.0,0.0214]